fUSD/lending_fUSD_20240327
["ID","MTS","AMOUNT","RATE_DAILY","PERIOD"]
[320695738,1711501849012,-5678.19865851,0.00061139,40]
[320695739,1711501849022,-1005.86,0.00061145,120]
[320695740,1711501849032,-151.032707,0.00061198,118]
[320695741,1711501849042,-150.0,0.00061206,120]
[320695742,1711501849052,-150.0,0.0006123,120]
[320695743,1711501849061,-150.0,0.00061325,120]
[320695744,1711501849072,-150.0,0.00061325,120]
[320695745,1711501849082,-760.0,0.00061339,120]
[320695746,1711501849091,-264.0,0.00061351,30]
[320695747,1711501849100,-500.0,0.00061369,120]
[320695748,1711501849110,-500.0,0.00061369,120]
[320695749,1711501849124,-500.0,0.00061369,120]
[320695750,1711501849133,-5575.76,0.00061369,120]
[320695751,1711501849143,-1696.5,0.00061369,120]
[320695752,1711501849152,-500.0,0.00061369,120]
[320695753,1711501849163,-1025.67,0.00061369,120]
[320695754,1711501849173,-500.0,0.00061369,120]
[320695755,1711501849183,-500.0,0.00061369,120]
[320695756,1711501849193,-1247.4,0.00061369,120]
[320695757,1711501849203,-2399.49,0.00061369,120]
[320695758,1711501849215,-500.0,0.00061369,120]
[320695759,1711501849224,-500.0,0.00061369,120]
[320695760,1711501849233,-1567.57,0.00061369,120]
[320695761,1711501849243,-772.51,0.00061369,120]
[320695762,1711501849256,-173.88105935,0.00061369,120]
[320695763,1711501849265,-500.0,0.00061369,120]
[320695764,1711501849274,-1000.0,0.000614,7]
[320695765,1711501849283,-150.0,0.00061444,120]
[320695766,1711501849292,-151.15829181,0.00061445,120]
[320695767,1711501849302,-2584.49304,0.0006145,103]
[320695768,1711501849311,-194.0,0.00061452,28]
[320695769,1711501849322,-151.032707,0.00061498,119]
[320695770,1711501849332,-150.0,0.000615,105]
[320695771,1711501849343,-413.66,0.00061522,2]
[320695772,1711501849355,-150.0,0.00061562,120]
[320695773,1711501849363,-150.0,0.00061562,120]
[320695774,1711501849373,-150.0,0.00061673,120]
[320695775,1711501849383,-150.0,0.00061681,120]
[320695776,1711501849392,-150.0,0.000618,120]
[320695777,1711501849402,-150.0,0.000618,120]
[320695778,1711501849412,-150.0,0.000618,120]
[320695779,1711501849422,-924.23,0.00061808,30]
[320695780,1711501849432,-924.23,0.00061808,30]
[320695781,1711501849442,-924.23,0.00061808,30]
[320695782,1711501849452,-2000.0,0.00061898,10]
[320695783,1711501849462,-500.0,0.00061917,120]
[320695784,1711501849471,-500.0,0.00061917,120]
[320695785,1711501849481,-500.0,0.00061917,120]
[320695786,1711501849490,-5575.76,0.00061917,120]
[320695787,1711501849501,-1696.5,0.00061917,120]
[320695788,1711501849511,-500.0,0.00061917,120]
[320695789,1711501849520,-1025.67,0.00061917,120]
[320695790,1711501849531,-500.0,0.00061917,120]
[320695791,1711501849541,-500.0,0.00061917,120]
[320695792,1711501849550,-1247.4,0.00061917,120]
[320695793,1711501849559,-2399.49,0.00061917,120]
[320695794,1711501849569,-592.55546788,0.00061917,120]
[320695795,1711501849578,-176.00397671,0.00061917,120]
[320695796,1711501849589,-1567.57,0.00061917,120]
[320695797,1711501849599,-772.51,0.00061917,120]
[320695798,1711501849608,-500.0,0.00061917,120]
[320695799,1711501849619,-150.0,0.00061919,120]
[320695800,1711501849628,-419.67657927,0.00061925,64]
[320695801,1711501849637,-1459.02,0.00061971,10]
[320695802,1711501849647,-4360.87091355,0.00062,120]
[320695803,1711501849656,-568.3529,0.00062,120]
[320695804,1711501849665,-150.0,0.00062,90]
[320695805,1711501849674,-1193.06021511,0.00062,120]
[320695806,1711501849683,-150.0,0.00062,106]
[320695807,1711501849693,-150.0,0.00062038,120]
[320695808,1711501849702,-150.0,0.00062038,120]
[320695809,1711501849710,-2584.49305,0.0006207,106]
[320695810,1711501849719,-150.0,0.00062117,120]
[320695811,1711501849728,-150.0,0.00062157,120]
[320695812,1711501849737,-151.032707,0.00062198,118]
[320695813,1711501849748,-150.0,0.00062276,120]
[320695814,1711501849758,-150.0,0.00062276,120]
[320695815,1711501849767,-304.18861463,0.00062288,2]
[320695816,1711501849775,-150.0,0.00062394,120]
[320695817,1711501849785,-2241.8,0.00062455,117]
[320695818,1711501849794,-403.84731049,0.00062457,14]
[320695819,1711501849803,-500.0,0.00062465,120]
[320695820,1711501849813,-500.0,0.00062465,120]
[320695821,1711501849822,-500.0,0.00062465,120]
[320695822,1711501849831,-5575.76,0.00062465,120]
[320695823,1711501849840,-1696.5,0.00062465,120]
[320695824,1711501849849,-500.0,0.00062465,120]
[320695825,1711501849858,-1025.67,0.00062465,120]
[320695826,1711501849867,-500.0,0.00062465,120]
[320695827,1711501849877,-500.0,0.00062465,120]
[320695828,1711501849886,-1247.4,0.00062465,120]
[320695829,1711501849898,-2399.49,0.00062465,120]
[320695830,1711501849908,-1567.57,0.00062465,120]
[320695831,1711501849917,-772.51,0.00062465,120]
[320695832,1711501849928,-500.0,0.00062465,120]
[320695833,1711501849937,-152.34,0.00062493,30]
[320695834,1711501849946,-238.9,0.00062493,30]
[320695835,1711501849956,-517.56,0.00062493,30]
[320695836,1711501849966,-161.35,0.00062493,30]
[320695837,1711501849975,-304.57,0.00062493,30]
[320695838,1711501849984,-661.33,0.00062493,30]
[320695839,1711501849998,-150.0,0.00062493,30]
[320695840,1711501850011,-517.56,0.00062493,30]
[320695841,1711501850023,-161.35,0.00062493,30]
[320695842,1711501850035,-150.0,0.00062493,30]
[320695843,1711501850047,-150.0,0.00062493,30]
[320695844,1711501850060,-150.0,0.00062493,30]
[320695845,1711501850071,-150.0,0.00062493,30]
[320695846,1711501850081,-161.35,0.00062493,30]
[320695847,1711501850092,-150.0,0.00062493,30]
[320695848,1711501850104,-161.35,0.00062493,30]
[320695849,1711501850116,-151.032707,0.00062498,119]
[320695850,1711501850128,-150.0,0.000625,107]
[320695851,1711501850140,-150.0,0.00062513,120]
[320695852,1711501850152,-150.0,0.00062513,120]
[320695853,1711501850164,-150.0,0.00062561,120]
[320695854,1711501850176,-150.0,0.00062632,120]
[320695855,1711501850188,-194.0,0.00062706,28]
[320695856,1711501850199,-150.0,0.00062751,120]
[320695857,1711501850212,-150.0,0.00062751,120]
[320695858,1711501850224,-150.0,0.00062751,120]
[320695859,1711501850234,-924.23,0.00062767,30]
[320695860,1711501850245,-924.23,0.00062767,30]
[320695861,1711501850257,-293.71,0.00062767,30]
[320695862,1711501850268,-150.0,0.0006287,120]
[320695863,1711501850279,-1005.86,0.0006289,120]
[320695864,1711501850290,-150.5,0.0006298,15]
[320695865,1711501850302,-150.0,0.00062989,120]
[320695866,1711501850313,-150.0,0.00062989,120]
[320695867,1711501850324,-150.5,0.0006299,15]
[320695868,1711501850335,-300.0,0.00063,63]
[320695869,1711501850347,-27536.29330674,0.00063,10]
[320695870,1711501850359,-60000.000009,0.00063,30]
[320695871,1711501850372,-500.0,0.00063,120]
[320695872,1711501850382,-410.0,0.00063,120]
[320695873,1711501850393,-150.0,0.00063,108]
[320695874,1711501850404,-150.0,0.00063004,120]
[320695875,1711501850415,-150.0,0.00063012,120]
[320695876,1711501850429,-1000.0,0.00063013,120]
[320695877,1711501850442,-1000.0,0.00063013,120]
[320695878,1711501850453,-1000.0,0.00063013,120]
[320695879,1711501850466,-1000.0,0.00063013,120]
[320695880,1711501850479,-1000.0,0.00063013,120]
[320695881,1711501850490,-1000.0,0.00063013,120]
[320695882,1711501850503,-1000.0,0.00063013,120]
[320695883,1711501850514,-1000.0,0.00063013,120]
[320695884,1711501850526,-1100.71843219,0.00063013,120]
[320695885,1711501850536,-500.0,0.00063013,120]
[320695886,1711501850547,-500.0,0.00063013,120]
[320695887,1711501850558,-500.0,0.00063013,120]
[320695888,1711501850570,-1696.5,0.00063013,120]
[320695889,1711501850581,-5575.76,0.00063013,120]
[320695890,1711501850592,-500.0,0.00063013,120]
[320695891,1711501850604,-1025.67,0.00063013,120]
[320695892,1711501850617,-335.26450443,0.00063013,120]
[320695893,1711501850630,-500.0,0.00063013,120]
[320695894,1711501850642,-1247.4,0.00063013,120]
[320695895,1711501850654,-2399.49,0.00063013,120]
[320695896,1711501850667,-1567.57,0.00063013,120]
[320695897,1711501850680,-772.51,0.00063013,120]
[320695898,1711501850693,-500.0,0.00063013,120]
[320695899,1711501850704,-150.0,0.00063107,120]
[320695900,1711501850714,-151.032707,0.00063198,118]
[320695901,1711501850724,-150.0,0.00063226,120]
[320695902,1711501850735,-150.0,0.00063226,120]
[320695903,1711501850748,-1027.0,0.0006327,120]
[320695904,1711501850759,-161.35,0.00063315,30]
[320695905,1711501850770,-161.35,0.00063315,30]
[320695906,1711501850782,-161.35,0.00063315,30]
[320695907,1711501850793,-161.35,0.00063315,30]
[320695908,1711501850803,-161.35,0.00063315,30]
[320695909,1711501850814,-161.35,0.00063315,30]
[320695910,1711501850826,-161.35,0.00063315,30]
[320695911,1711501850837,-161.35,0.00063315,30]
[320695912,1711501850847,-161.35,0.00063315,30]
[320695913,1711501850856,-161.35,0.00063315,30]
[320695914,1711501850867,-161.35,0.00063315,30]
[320695915,1711501850877,-161.35,0.00063315,30]
[320695916,1711501850887,-161.35,0.00063315,30]
[320695917,1711501850898,-161.35,0.00063315,30]
[320695918,1711501850908,-161.35,0.00063315,30]
[320695919,1711501850919,-150.0,0.00063345,120]
[320695920,1711501850929,-151.032707,0.00063448,119]
[320695921,1711501850940,-150.0,0.00063448,120]
[320695922,1711501850950,-7598.2530365,0.00063457,3]
[320695923,1711501850961,-1588.6022282,0.00063457,3]
[320695924,1711501850972,-957.6844391,0.00063457,3]
[320695925,1711501850982,-200.2650422,0.00063457,3]
[320695926,1711501850993,-23301.7360783,0.00063457,3]
[320695927,1711501851007,-28872.8357306,0.00063457,3]
[320695928,1711501851018,-150.0,0.00063464,120]
[320695929,1711501851030,-150.0,0.00063464,120]
[320695930,1711501851041,-151.032707,0.00063498,119]
[320695931,1711501851052,-782997.4094607,0.000635,30]
[320695932,1711501851063,-150.0,0.000635,109]
[320695933,1711501851074,-151.0,0.000635,120]
[320695934,1711501851085,-151.0,0.000635,120]
[320695935,1711501851095,-258.540426,0.000635,120]
[320695936,1711501851106,-258.540426,0.000635,120]
[320695937,1711501851117,-236.2091,0.000635,120]
[320695938,1711501851129,-236.2091,0.000635,120]
[320695939,1711501851141,-151.0,0.000635,120]
[320695940,1711501851151,-151.0,0.000635,120]
[320695941,1711501851163,-408.221779,0.000635,120]
[320695942,1711501851173,-408.221779,0.000635,120]
[320695943,1711501851184,-194.292824,0.000635,120]
[320695944,1711501851194,-194.292824,0.000635,120]
[320695945,1711501851205,-151.0,0.000635,120]
[320695946,1711501851219,-151.0,0.000635,120]
[320695947,1711501851230,-151.0,0.000635,120]
[320695948,1711501851241,-151.0,0.000635,120]
[320695949,1711501851253,-151.0,0.000635,120]
[320695950,1711501851264,-151.0,0.000635,120]
[320695951,1711501851274,-151.0,0.000635,120]
[320695952,1711501851285,-151.0,0.000635,120]
[320695953,1711501851296,-151.0,0.000635,120]
[320695954,1711501851308,-151.0,0.000635,120]
[320695955,1711501851320,-3754.227452,0.000635,120]
[320695956,1711501851332,-3754.227452,0.000635,120]
[320695957,1711501851344,-151.0,0.000635,120]
[320695958,1711501851355,-244.393601,0.000635,120]
[320695959,1711501851366,-244.393601,0.000635,120]
[320695960,1711501851377,-151.0,0.000635,120]
[320695961,1711501851388,-151.0,0.000635,120]
[320695962,1711501851399,-151.0,0.000635,120]
[320695963,1711501851410,-151.0,0.000635,120]
[320695964,1711501851421,-1100.673082,0.000635,120]
[320695965,1711501851432,-1100.673082,0.000635,120]
[320695966,1711501851443,-151.0,0.000635,120]
[320695967,1711501851456,-151.0,0.000635,120]
[320695968,1711501851466,-151.0,0.000635,120]
[320695969,1711501851476,-197.332761,0.000635,30]
[320695970,1711501851486,-528.279994,0.000635,30]
[320695971,1711501851495,-197.332761,0.000635,30]
[320695972,1711501851505,-528.279994,0.000635,30]
[320695973,1711501851514,-301.34254,0.000635,120]
[320695974,1711501851524,-151.0,0.000635,30]
[320695975,1711501851533,-184.172576,0.000635,14]
[320695976,1711501851543,-184.172576,0.000635,14]
[320695977,1711501851553,-151.0,0.000635,120]
[320695978,1711501851563,-151.0,0.000635,120]
[320695979,1711501851572,-151.0,0.000635,7]
[320695980,1711501851581,-164.270398,0.000635,120]
[320695981,1711501851591,-164.270398,0.000635,120]
[320695982,1711501851600,-283.045512,0.000635,120]
[320695983,1711501851609,-283.045512,0.000635,120]
[320695984,1711501851619,-151.0,0.000635,120]
[320695985,1711501851628,-151.0,0.000635,120]
[320695986,1711501851638,-151.0,0.000635,120]
[320695987,1711501851647,-151.0,0.000635,120]
[320695988,1711501851657,-151.0,0.000635,120]
[320695989,1711501851666,-151.0,0.000635,120]
[320695990,1711501851676,-1035.406764,0.000635,120]
[320695991,1711501851686,-1035.406764,0.000635,120]
[320695992,1711501851696,-151.0,0.000635,120]
[320695993,1711501851705,-151.0,0.000635,120]
[320695994,1711501851715,-6495.1274392,0.00063556,3]
[320695995,1711501851724,-500.0,0.00063561,120]
[320695996,1711501851736,-158.99908086,0.00063561,120]
[320695997,1711501851747,-500.0,0.00063561,120]
[320695998,1711501851757,-5575.76,0.00063561,120]
[320695999,1711501851767,-1696.5,0.00063561,120]
[320696000,1711501851777,-500.0,0.00063561,120]
[320696001,1711501851787,-1025.67,0.00063561,120]
[320696002,1711501851797,-500.0,0.00063561,120]
[320696003,1711501851807,-1247.4,0.00063561,120]
[320696004,1711501851817,-2399.49,0.00063561,120]
[320696005,1711501851826,-1567.57,0.00063561,120]
[320696006,1711501851836,-772.51,0.00063561,120]
[320696007,1711501851846,-500.0,0.00063561,120]
[320696008,1711501851855,-150.0,0.00063583,120]
[320696009,1711501851865,-150.0,0.00063599,120]
[320696010,1711501851875,-189818.54228078,0.000636,120]
[320696011,1711501851884,-300.0,0.000637,120]
[320696012,1711501851894,-150.0,0.00063702,120]
[320696013,1711501851904,-150.0,0.00063702,120]
[320696014,1711501851914,-150.0,0.00063702,120]
[320696015,1711501852130,-1639.9011888,0.00063736,3]
[320696016,1711501852139,-988.609875,0.00063736,3]
[320696017,1711501852149,-200.2650422,0.00063756,3]
[320696018,1711501852159,-20098.163536,0.00063756,3]
[320696019,1711501852170,-24925.1984129,0.00063756,3]
[320696020,1711501852180,-5392.0018419,0.0006378,3]
[320696021,1711501852190,-413.66,0.00063786,2]
[320696022,1711501852199,-98322.89486633,0.000638,120]
[320696023,1711501852309,-627.3950469,0.000638,120]
[320696024,1711501852327,-1750.00000001,0.000638,120]
[320696025,1711501852344,-1227.77116269,0.000638,120]
[320696026,1711501852357,-766.99513627,0.000638,120]
[320696027,1711501852369,-1351.76202676,0.000638,120]
[320696037,1711502854163,-1000.0,0.00024999,2]
[320696038,1711502854185,-350.0,0.00025,3]
[320696039,1711502854210,-425.866066,0.0003297,2]
[320696040,1711502854230,-156.64990643,0.00033234,4]
[320696041,1711502854250,-67.10224638,0.00033235,2]
[320696042,1711502892458,-82.89775362,0.00033235,2]
[320696043,1711502892479,-1710.70529348,0.00033235,4]
[320696044,1711502892504,-11834.8828916,0.00033236,10]
[320696045,1711502892527,-591.02141877,0.00033236,7]
[320696046,1711502892547,-3879.31097033,0.00036367,4]
[320696047,1711502892567,-643.93684455,0.00036368,4]
[320696048,1711502892587,-250.0,0.000368,2]
[320696049,1711502892609,-244.24482765,0.00036831,2]
[320696050,1711502949453,-6000.0,0.0003683,4]
[320696051,1711502984767,-290.05265096,0.00036731,2]
[320696052,1711502984795,-29709.94734904,0.0003683,4]
[320696053,1711503033043,-184.57960791,0.0003,4]
[320696054,1711503033053,-735.80245572,0.0003683,60]
[320696055,1711503033062,-5742.18550435,0.0003683,4]
[320696056,1711503033146,-1285.0,0.0003683,4]
[320696057,1711503033211,-3316.64677374,0.0003683,4]
[320696058,1711503033258,-368.36047548,0.0003683,4]
[320696059,1711503033363,-750.0,0.0003683,4]
[320696060,1711503033416,-8032.61250689,0.0003683,4]
[320696061,1711503033432,-684.71908266,0.0003683,4]
[320696078,1711503038363,-1765.40064539,0.0003683,4]
[320696081,1711503038377,-1018.0311035,0.0003683,4]
[320696083,1711503038388,-275.96458678,0.0003683,4]
[320696085,1711503038400,-515.29338044,0.0003683,4]
[320696095,1711503038482,-3195.23258283,0.0003683,4]
[320696097,1711503038495,-5768.81774827,0.0003683,4]
[320696099,1711503038506,-299.00908905,0.0003683,30]
[320696100,1711503038517,-8768.69337235,0.00036831,2]
[320696103,1711503038528,-2500.0,0.00036831,2]
[320696105,1711503038538,-1364.6825437,0.00036888,2]
[320696107,1711503038548,-237.15704611,0.00036888,2]
[320696108,1711503038559,-9531.93038892,0.00036888,2]
[320696110,1711503038569,-499.99,0.00036929,2]
[320696111,1711503038579,-1296.47681035,0.00036929,30]
[320696112,1711503038588,-240.9624115,0.00036929,4]
[320696113,1711503038598,-6502.70372376,0.0003693,4]
[320696114,1711503038608,-347.03667878,0.0003693,10]
[320696115,1711503038617,-8945.54740808,0.00036931,2]
[320696116,1711503038629,-19177.1075461,0.00036931,2]
[320696117,1711503038642,-216877.34504582,0.00036931,2]
[320696118,1711503038652,-160.0,0.00036988,120]
[320696119,1711503038662,-7132.4,0.00037075,2]
[320696120,1711503038672,-1003.8895197,0.00037114,5]
[320696121,1711503038682,-250.0,0.00037153,110]
[320696122,1711503038691,-150.99,0.00037153,2]
[320696123,1711503038701,-499.99,0.00037153,2]
[320696124,1711503038711,-1000.0,0.00037164,2]
[320696125,1711503038720,-500.0,0.0003724,2]
[320696126,1711503038730,-14070.58,0.0003724,2]
[320696127,1711503038742,-294.51808558,0.00037773,8]
[320696128,1711503038751,-1643.76,0.00037873,2]
[320696129,1711503038762,-3296.01,0.0003796,2]
[320696130,1711503038771,-381.54,0.00038162,2]
[320696131,1711503038780,-152.51,0.000382,2]
[320696132,1711503038790,-152.51,0.00038333,2]
[320696133,1711503038799,-200.0,0.00038365,2]
[320696134,1711503038809,-152.51,0.00038466,2]
[320696135,1711503038818,-152.51,0.00038599,2]
[320696136,1711503038828,-152.51,0.00038731,2]
[320696137,1711503038837,-598.6,0.00038748,2]
[320696138,1711503038846,-344.41,0.00038831,2]
[320696139,1711503038855,-1992.43,0.00038855,2]
[320696140,1711503038865,-152.51,0.00038864,2]
[320696141,1711503038874,-500.0,0.00038955,2]
[320696142,1711503038883,-152.51,0.00038997,2]
[320696143,1711503038893,-152.51,0.00039129,2]
[320696144,1711503038903,-200.0,0.00039153,2]
[320696145,1711503038914,-152.51,0.00039262,2]
[320696146,1711503038923,-152.51,0.00039395,2]
[320696147,1711503038933,-152.51,0.00039528,2]
[320696148,1711503038943,-152.51,0.0003966,2]
[320696149,1711503038952,-152.51,0.00039793,2]
[320696150,1711503038962,-237.15704608,0.00039853,2]
[320696151,1711503038971,-152.51,0.00039926,2]
[320696152,1711503038980,-20000.00003937,0.0004,2]
[320696153,1711503039000,-152.51,0.00040058,2]
[320696154,1711503039010,-1364.68254366,0.00040178,2]
[320696155,1711503039020,-9531.93038883,0.00040178,2]
[320696156,1711503039029,-152.51,0.00040191,2]
[320696157,1711503039039,-677.05,0.00040197,2]
[320696158,1711503039049,-488.0,0.000405,2]
[320696159,1711503039058,-158.4,0.00040591,15]
[320696160,1711503039069,-250.0,0.00041001,2]
[320696161,1711503039078,-237.76,0.00041057,2]
[320696162,1711503039090,-1842.66,0.00041085,2]
[320696163,1711503039100,-344.41,0.00041095,2]
[320696164,1711503039111,-399.3,0.00041615,2]
[320696165,1711503039121,-1000.0,0.0004181,2]
[320696166,1711503039130,-294.51808553,0.00041877,10]
[320696167,1711503039140,-200.0,0.00042609,2]
[320696168,1711503039149,-237.15704608,0.00042818,2]
[320696169,1711503039159,-304.0,0.00042833,120]
[320696170,1711503039170,-344.41,0.00043359,2]
[320696171,1711503039180,-1364.68254366,0.00043468,2]
[320696172,1711503039190,-9531.93038883,0.00043468,2]
[320696173,1711503039201,-155.0,0.00043511,4]
[320696174,1711503039211,-237.76,0.00043796,2]
[320696175,1711503039221,-175.32,0.00044968,2]
[320696176,1711503039231,-344.41,0.00045623,2]
[320696177,1711503039241,-237.15704608,0.00045782,2]
[320696178,1711503039251,-294.51808553,0.00045981,12]
[320696179,1711503039266,-1000.0,0.00046455,2]
[320696180,1711503039277,-237.76,0.00046536,2]
[320696181,1711503039287,-158.34547541,0.00046539,30]
[320696182,1711503039297,-1364.68254366,0.00046759,2]
[320696183,1711503039376,-800.0,0.00046795,2]
[320696184,1711503039387,-152.15569369,0.00047681,30]
[320696185,1711503039397,-151.96663146,0.00047719,30]
[320696186,1711503039406,-179.59,0.00047875,120]
[320696187,1711503039415,-344.41,0.00047887,2]
[320696188,1711503039424,-158.34547541,0.00047998,30]
[320696189,1711503039434,-304.0,0.00048187,120]
[320696190,1711503039446,-152.15569369,0.0004848,30]
[320696191,1711503039462,-154.57469598,0.00048481,30]
[320696192,1711503039472,-232.46942275,0.00048797,4]
[320696193,1711503039481,-139571.80444873,0.00048798,10]
[320696194,1711503039499,-369.93113102,0.00048798,10]
[320696195,1711503039525,-651.8383,0.00048798,10]
[320696196,1711503039538,-692.79472096,0.00048798,10]
[320696197,1711503039554,-1425.94447234,0.00048798,10]
[320696198,1711503039565,-286.98045318,0.00048798,10]
[320696199,1711503039576,-14865.36262399,0.00048798,10]
[320696200,1711503039589,-1220.20775906,0.00048798,10]
[320696201,1711503039601,-406.46916604,0.00048798,10]
[320696202,1711503039613,-3069.06129331,0.00048798,10]
[320696203,1711503039632,-469.63768121,0.00048798,10]
[320696204,1711503040473,-2599.08392914,0.00046759,2]
[320696205,1711503040485,-557.7281392,0.00046759,2]
[320696206,1711503040533,-667.39080757,0.00046759,2]
[320696207,1711503040547,-291.72,0.00046759,2]
[320696208,1711503040559,-1191.88699385,0.00046759,2]
[320696209,1711503040571,-2018.55080121,0.00046759,2]
[320696210,1711503040607,-1946.6085567,0.00046759,2]
[320696211,1711503040621,-258.96116116,0.00046759,2]
[320696212,1711503040631,-237.15704608,0.00048747,2]
[320696213,1711503040640,-26.87078256,0.00048798,10]
[320696214,1711503040656,-1153.5,0.00048798,10]
[320696233,1711503043412,-2907.65023369,0.00048798,10]
[320696234,1711503043425,-3098.35923569,0.00048798,10]
[320696235,1711503043465,-6156.83501512,0.00048798,10]
[320696236,1711503043487,-9249.14178148,0.00048798,10]
[320696237,1711503043500,-158.27398615,0.00048847,30]
[320696238,1711503043509,-695.02047517,0.00049,30]
[320696239,1711503043519,-231.6847053,0.000493,120]
[320696240,1711503043529,-152.90254773,0.00049317,30]
[320696241,1711503043544,-151.032709,0.00049798,97]
[320696242,1711503043555,-2371.36,0.0004996,45]
[320696243,1711503043564,-598.6,0.00049981,120]
[320696244,1711503043575,-5000.0,0.0005,30]
[320696245,1711503043585,-2440.0,0.0005,8]
[320696246,1711503043596,-231.81414857,0.0005,120]
[320696247,1711503043605,-1364.68254366,0.00050049,2]
[320696248,1711503043616,-294.51808553,0.00050085,14]
[320696249,1711503043626,-152.15569369,0.0005013,60]
[320696250,1711503043635,-344.41,0.00050151,2]
[320696251,1711503043645,-151.032709,0.00050798,99]
[320696252,1711503043654,-1068.23681744,0.000509,120]
[320696253,1711503043663,-1068.23681744,0.000509,120]
[320696254,1711503043672,-1068.23681744,0.000509,120]
[320696255,1711503043682,-1068.23681744,0.000509,120]
[320696256,1711503043691,-1068.23681744,0.000509,120]
[320696257,1711503043701,-1068.23681744,0.000509,120]
[320696258,1711503043710,-1068.23681744,0.000509,120]
[320696259,1711503043720,-1068.23681744,0.000509,120]
[320696260,1711503043729,-1068.23681744,0.000509,120]
[320696261,1711503043739,-1068.23681744,0.000509,120]
[320696262,1711503043749,-1000.0,0.00051101,120]
[320696263,1711503043759,-1068.23681744,0.00051162,120]
[320696264,1711503043768,-161.97290236,0.00051461,60]
[320696265,1711503043777,-151.032709,0.00051498,100]
[320696266,1711503043787,-151.032709,0.00051798,101]
[320696267,1711503043797,-953.65,0.00052,120]
[320696268,1711503043808,-181.37,0.00052,120]
[320696269,1711503043819,-283.09,0.00052,120]
[320696270,1711503043829,-154.86370851,0.00052363,60]
[320696271,1711503043839,-344.41,0.00052415,2]
[320696272,1711503043849,-152.15569369,0.00052494,60]
[320696273,1711503043858,-302.065418,0.00052498,102]
[320696274,1711503043868,-152.90254773,0.00052551,60]
[320696275,1711503043878,-160.96,0.000526,7]
[320696276,1711503043887,-158.34547541,0.00052615,60]
[320696277,1711503043896,-158.27398615,0.0005263,60]
[320696278,1711503043906,-158.34547541,0.00052749,60]
[320696279,1711503043916,-302.065418,0.00052798,103]
[320696280,1711503043926,-205.03115767,0.00053,90]
[320696281,1711503043935,-152.59774795,0.00053144,60]
[320696282,1711503043945,-163.43189591,0.00053163,60]
[320696283,1711503043955,-1364.68254366,0.00053339,2]
[320696284,1711503043964,-381.54,0.00053427,2]
[320696286,1711503043973,-304.0,0.00053541,120]
[320696288,1711503043982,-552.0,0.00053699,120]
[320696290,1711503043993,-562.0,0.00053699,120]
[320696292,1711503044002,-151.032709,0.00053798,105]
[320696294,1711503044011,-304.18861463,0.000539,2]
[320696296,1711503044020,-177.3258193,0.0005399,2]
[320696298,1711503044030,-6183.03,0.00054,120]
[320696300,1711503044039,-25000.0,0.00054,2]
[320696302,1711503044050,-161.97290236,0.0005401,60]
[320696304,1711503044060,-562.0,0.0005411,120]
[320696306,1711503044069,-294.51808553,0.00054188,14]
[320696308,1711503044078,-160.96,0.000544,8]
[320696310,1711503044088,-302.065418,0.00054498,106]
[320696312,1711503044097,-564.0,0.00054521,120]
[320696314,1711503044107,-344.41,0.00054679,2]
[320696316,1711503044116,-151.96663146,0.00054721,60]